fUSD/lending_fUSD_20251206
["ID","MTS","AMOUNT","RATE_DAILY","PERIOD"]
[396594616,1765065053726,-500.0,0.00016438,2]
[396594617,1765065053736,-500.0,0.00016438,2]
[396594618,1765065053745,-500.0,0.00016438,2]
[396594619,1765065053756,-500.0,0.00016438,2]
[396594620,1765065053766,-548.7,0.00016438,2]
[396594621,1765065053775,-924.99,0.00016438,2]
[396594622,1765065053785,-500.0,0.00016438,2]
[396594623,1765065053795,-2150.28,0.00016438,2]
[396594624,1765065053804,-3296.61,0.00016438,2]
[396594625,1765065053813,-500.0,0.00016438,2]
[396594626,1765065053823,-524.24856327,0.00016438,2]
[396594627,1765065053832,-564.2,0.00016438,2]
[396594628,1765065053841,-500.0,0.00016438,2]
[396594629,1765065053850,-500.0,0.00016438,2]
[396594630,1765065053859,-151.0,0.00016438,2]
[396594631,1765065053868,-500.0,0.00016438,2]
[396594632,1765065053877,-151.0,0.00016438,2]
[396594633,1765065053887,-151.0,0.00016438,2]
[396594634,1765065053896,-500.0,0.00016438,2]
[396594635,1765065053906,-151.0,0.00016438,2]
[396594636,1765065053916,-500.0,0.00016438,2]
[396594637,1765065053926,-582.25,0.00016438,2]
[396594638,1765065053935,-151.0,0.00016438,2]
[396594639,1765065053945,-744.03,0.00016438,2]
[396594640,1765065054141,-500.0,0.00016438,2]
[396594641,1765065054151,-151.0,0.00016438,2]
[396594642,1765065054161,-2478.43,0.00016438,2]
[396594643,1765065054170,-500.0,0.00016438,2]
[396594644,1765065054180,-288.086986,0.00016438,2]
[396594645,1765065054189,-610.11,0.00016438,2]
[396594646,1765065054198,-500.0,0.00016438,2]
[396594647,1765065054208,-500.0,0.00016438,2]
[396594648,1765065054217,-675.5,0.00016438,2]
[396594649,1765065054227,-500.0,0.00016438,2]
[396594650,1765065054236,-500.0,0.00016438,2]
[396594651,1765065054245,-508.68,0.00016438,2]
[396594652,1765065054254,-500.0,0.00016438,2]
[396594653,1765065054263,-726.09,0.00016438,2]
[396594654,1765065054273,-624.02,0.00016438,2]
[396594655,1765065054282,-624.02,0.00016438,2]
[396594656,1765065054291,-624.02,0.00016438,2]
[396594657,1765065054301,-624.02,0.00016438,2]
[396594658,1765065054310,-500.0,0.00016438,2]
[396594659,1765065054319,-624.02,0.00016438,2]
[396594660,1765065054328,-2170.56,0.00016438,2]
[396594661,1765065054337,-624.02,0.00016438,2]
[396594662,1765065054346,-624.02,0.00016438,2]
[396594663,1765065054356,-500.0,0.00016438,2]
[396594664,1765065054365,-1480.35,0.00016438,2]
[396594665,1765065054375,-642.95327589,0.00016438,2]
[396594666,1765065054385,-151.0,0.00016438,2]
[396594667,1765065054394,-500.0,0.00016438,2]
[396594668,1765065054403,-2298.7,0.00016438,2]
[396594669,1765065054413,-951.32,0.00016438,2]
[396594670,1765065054423,-500.0,0.00016438,2]
[396594671,1765065054432,-975.58,0.00016438,2]
[396594672,1765065054442,-500.0,0.00016438,2]
[396594673,1765065054451,-500.0,0.00016438,2]
[396594674,1765065054461,-865.35,0.00016438,2]
[396594675,1765065054470,-1214.15,0.00016438,2]
[396594676,1765065054480,-532.7880038,0.00016438,2]
[396594677,1765065054489,-1897.2,0.00016438,2]
[396594678,1765065054499,-500.0,0.00016438,2]
[396594679,1765065054508,-500.0,0.00016438,2]
[396594680,1765065054518,-2229.31,0.00016438,2]
[396594681,1765065054527,-500.0,0.00016438,2]
[396594682,1765065054537,-560.796416,0.00016438,2]
[396594683,1765065054546,-500.0,0.00016438,2]
[396594684,1765065054556,-151.0,0.00016438,2]
[396594685,1765065054565,-1611.79,0.00016438,2]
[396594686,1765065054575,-160.288808,0.00016438,2]
[396594687,1765065054584,-500.0,0.00016438,2]
[396594688,1765065054593,-151.0,0.00016438,2]
[396594689,1765065054602,-2092.97,0.00016438,2]
[396594690,1765065054612,-500.0,0.00016438,2]
[396594691,1765065054621,-3142.99,0.00016438,2]
[396594692,1765065054631,-2106.01,0.00016438,2]
[396594693,1765065054641,-500.0,0.00016438,2]
[396594694,1765065054650,-151.0,0.00016438,2]
[396594695,1765065054661,-151.0,0.00016438,2]
[396594696,1765065054676,-500.0,0.00016438,2]
[396594697,1765065054686,-500.0,0.00016438,2]
[396594698,1765065054695,-151.0,0.00016438,2]
[396594699,1765065054706,-151.0,0.00016438,2]
[396594700,1765065054717,-500.0,0.00016438,2]
[396594701,1765065054726,-500.0,0.00016438,2]
[396594702,1765065054736,-500.0,0.00016438,2]
[396594703,1765065054747,-500.0,0.00016438,2]
[396594704,1765065054757,-500.0,0.00016438,2]
[396594705,1765065054767,-1423.16,0.00016438,2]
[396594706,1765065054777,-500.0,0.00016438,2]
[396594707,1765065054787,-1915.73,0.00016438,2]
[396594708,1765065054797,-500.0,0.00016438,2]
[396594709,1765065054807,-500.0,0.00016438,2]
[396594710,1765065054816,-500.0,0.00016438,2]
[396594711,1765065054829,-497.85665995,0.00016438,2]
[396594712,1765065054839,-510.37,0.00016438,2]
[396594713,1765065054849,-965.85,0.00016438,2]
[396594714,1765065054859,-500.0,0.00016438,2]
[396594715,1765065054868,-260.162369,0.00016438,2]
[396594716,1765065054878,-676.8,0.00016438,2]
[396594717,1765065054888,-500.0,0.00016438,2]
[396594718,1765065054899,-19974.19605872,0.00016438,2]
[396594719,1765065054908,-14752.57,0.00016438,2]
[396594720,1765065054918,-2387.19,0.00016438,2]
[396594721,1765065054927,-1215.38,0.00016438,2]
[396594722,1765065054936,-518.5,0.00016438,2]
[396594723,1765065054946,-354.0,0.00016449,2]
[396594724,1765065054955,-4706.02640761,0.00016455,2]
[396594725,1765065054965,-168.0,0.00016466,2]
[396594726,1765065054975,-168.0,0.00016467,2]
[396594727,1765065054984,-1356.0,0.00016476,2]
[396594728,1765065054994,-151.0,0.00016476,2]
[396594729,1765065055004,-196.0,0.00016497,2]
[396594730,1765065055015,-358.14,0.000165,2]
[396594731,1765065055024,-500.0,0.0001651,2]
[396594732,1765065055034,-559.46208463,0.0001651,2]
[396594733,1765065055043,-150.0,0.0001651,2]
[396594734,1765065055055,-150.0,0.0001651,2]
[396594735,1765065055065,-500.0,0.0001651,2]
[396594736,1765065055074,-150.0,0.0001651,2]
[396594737,1765065055085,-153.54968971,0.0001651,2]
[396594738,1765065055096,-150.0,0.0001651,2]
[396594739,1765065055105,-500.0,0.0001651,2]
[396594740,1765065055115,-600.0,0.00016547,2]
[396594741,1765065055126,-703.23,0.00016548,2]
[396594742,1765065055137,-703.23,0.00016548,2]
[396594743,1765065055149,-703.23,0.00016548,2]
[396594744,1765065055159,-703.23,0.00016548,2]
[396594745,1765065055168,-697.37,0.00016548,2]
[396594746,1765065055178,-703.23,0.00016548,2]
[396594747,1765065055187,-703.23,0.00016548,2]
[396594748,1765065055196,-703.23,0.00016548,2]
[396594749,1765065055206,-703.23,0.00016548,2]
[396594750,1765065055217,-703.23,0.00016548,2]
[396594751,1765065055228,-703.23,0.00016548,2]
[396594752,1765065055239,-703.23,0.00016548,2]
[396594753,1765065055250,-703.23,0.00016548,2]
[396594754,1765065055260,-703.23,0.00016548,2]
[396594755,1765065055271,-703.23,0.00016548,2]
[396594756,1765065055281,-703.23,0.00016548,2]
[396594757,1765065055291,-703.23,0.00016548,2]
[396594758,1765065055302,-703.23,0.00016548,2]
[396594759,1765065055312,-703.23,0.00016548,2]
[396594760,1765065055321,-703.23,0.00016548,2]
[396594761,1765065055331,-703.23,0.00016548,2]
[396594762,1765065055340,-703.23,0.00016548,2]
[396594763,1765065055350,-703.23,0.00016548,2]
[396594764,1765065055359,-1418.92,0.00016548,2]
[396594765,1765065055368,-703.23,0.00016548,2]
[396594766,1765065055378,-703.23,0.00016548,2]
[396594767,1765065055387,-703.23,0.00016548,2]
[396594768,1765065055397,-703.23,0.00016548,2]
[396594769,1765065055406,-703.23,0.00016548,2]
[396594770,1765065055416,-703.23,0.00016548,2]
[396594771,1765065055425,-703.23,0.00016548,2]
[396594772,1765065055435,-703.23,0.00016548,2]
[396594773,1765065055444,-703.23,0.00016548,2]
[396594774,1765065055453,-703.23,0.00016548,2]
[396594775,1765065055463,-703.23,0.00016548,2]
[396594776,1765065055472,-692.34,0.00016548,2]
[396594777,1765065055482,-151.0,0.00016548,2]
[396594778,1765065055491,-151.0,0.00016548,2]
[396594779,1765065055501,-151.0,0.00016548,2]
[396594780,1765065055510,-151.0,0.00016548,2]
[396594781,1765065055520,-215.18231,0.00016548,2]
[396594782,1765065055529,-175.060837,0.00016548,2]
[396594783,1765065055538,-151.0,0.00016548,2]
[396594784,1765065055547,-151.0,0.00016548,2]
[396594785,1765065055557,-151.0,0.00016548,2]
[396594786,1765065055567,-151.0,0.00016548,2]
[396594787,1765065055576,-151.0,0.00016548,2]
[396594788,1765065055585,-151.0,0.00016548,2]
[396594789,1765065055594,-151.0,0.00016548,2]
[396594790,1765065055603,-151.0,0.00016548,2]
[396594791,1765065055613,-151.0,0.00016548,2]
[396594792,1765065055622,-151.0,0.00016548,2]
[396594793,1765065055631,-236.54413,0.00016548,2]
[396594794,1765065055640,-236.54413,0.00016548,2]
[396594795,1765065055650,-236.54413,0.00016548,2]
[396594796,1765065055659,-236.54413,0.00016548,2]
[396594797,1765065055672,-198.05136594,0.00016561,2]
[396594798,1765065055682,-151.0,0.00016566,2]
[396594799,1765065055691,-151.0,0.00016566,2]
[396594800,1765065055700,-295.945209,0.00016566,2]
[396594801,1765065055711,-152.764011,0.00016566,2]
[396594802,1765065055721,-151.0,0.00016566,2]
[396594803,1765065055730,-624.02,0.00016566,2]
[396594804,1765065055740,-10217.39036622,0.00016566,2]
[396594805,1765065055750,-4706.02640761,0.00016566,2]
[396594806,1765065055759,-510.0,0.00016569,2]
[396594807,1765065055769,-150.0,0.00016572,2]
[396594808,1765065055778,-250.0,0.00016575,2]
[396594809,1765065055788,-150.0,0.00016575,2]
[396594810,1765065055797,-500.0,0.00016575,2]
[396594811,1765065055806,-198.05136594,0.00016595,2]
[396594812,1765065055815,-956.34972234,0.00016598,2]
[396594813,1765065055824,-1000.0,0.000166,2]
[396594814,1765065055834,-200.0,0.00016602,2]
[396594815,1765065055843,-4313.0,0.00016617,2]
[396594816,1765065055852,-469.86002458,0.00016619,2]
[396594817,1765065055862,-2023.4543618,0.00016619,2]
[396594818,1765065055874,-500.0,0.00016619,2]
[396594819,1765065055883,-150.0,0.0001662,2]
[396594820,1765065055892,-500.0,0.00016647,2]
[396594821,1765065055902,-150.0,0.00016647,2]
[396594822,1765065055912,-500.0,0.00016647,2]
[396594823,1765065055922,-200.0,0.00016647,2]
[396594824,1765065055935,-202.59788116,0.00016647,2]
[396594825,1765065055944,-428.76804289,0.00016647,2]
[396594826,1765065055956,-4455.90560117,0.0001666,2]
[396594827,1765065055966,-480.30253659,0.00016672,2]
[396594828,1765065055976,-10217.39036622,0.00016678,2]
[396594829,1765065055986,-4706.02640761,0.00016678,2]
[396594830,1765065055995,-151.0,0.00016678,2]
[396594831,1765065056004,-151.0,0.00016678,2]
[396594832,1765065056013,-151.0,0.00016678,2]
[396594833,1765065056023,-151.0,0.00016678,2]
[396594834,1765065056033,-151.0,0.00016678,2]
[396594835,1765065056042,-151.0,0.00016678,2]
[396594836,1765065056054,-624.02,0.00016694,2]
[396594837,1765065056065,-7732.4784127,0.00016695,2]
[396594838,1765065056077,-4117.8473282,0.00016695,2]
[396594839,1765065056086,-35998.8956958,0.00016695,2]
[396594840,1765065056096,-151.0,0.00016695,2]
[396594841,1765065056105,-151.0,0.00016695,2]
[396594842,1765065056115,-151.0,0.00016695,2]
[396594843,1765065056125,-151.0,0.00016695,2]
[396594844,1765065056135,-197.471122,0.00016695,2]
[396594845,1765065056145,-151.0,0.00016695,2]
[396594846,1765065056155,-151.0,0.00016695,2]
[396594847,1765065056164,-151.0,0.00016695,2]
[396594848,1765065056175,-151.0,0.00016695,2]
[396594849,1765065056185,-151.0,0.00016695,2]
[396594850,1765065056196,-151.0,0.00016695,2]
[396594851,1765065056205,-151.0,0.00016695,2]
[396594852,1765065056215,-151.0,0.00016695,2]
[396594853,1765065056225,-151.0,0.00016695,2]
[396594854,1765065056235,-151.0,0.00016695,2]
[396594855,1765065056244,-151.0,0.00016695,2]
[396594856,1765065056254,-151.0,0.00016695,2]
[396594857,1765065056264,-151.0,0.00016695,2]
[396594858,1765065056275,-151.0,0.00016695,2]
[396594859,1765065056284,-151.0,0.00016695,2]
[396594860,1765065056294,-221.701919,0.00016695,2]
[396594861,1765065056303,-151.0,0.00016695,2]
[396594862,1765065056312,-221.701919,0.00016695,2]
[396594863,1765065056321,-151.0,0.00016695,2]
[396594864,1765065056331,-221.701919,0.00016695,2]
[396594865,1765065056340,-221.701919,0.00016695,2]
[396594866,1765065056349,-222.958005,0.00016695,2]
[396594867,1765065056359,-151.0,0.00016695,2]
[396594868,1765065056368,-199.866157,0.00016695,2]
[396594869,1765065056377,-199.866157,0.00016695,2]
[396594870,1765065056387,-199.866157,0.00016695,2]
[396594871,1765065056397,-199.866157,0.00016695,2]
[396594872,1765065056406,-167.662723,0.00016695,2]
[396594873,1765065056416,-151.0,0.00016695,2]
[396594874,1765065056425,-330.793777,0.00016695,2]
[396594875,1765065056435,-151.0,0.00016695,2]
[396594876,1765065056445,-330.793777,0.00016695,2]
[396594877,1765065056454,-151.0,0.00016695,2]
[396594878,1765065056463,-330.793777,0.00016695,2]
[396594879,1765065056474,-240.572356,0.00016695,2]
[396594880,1765065056483,-330.793777,0.00016695,2]
[396594881,1765065056492,-240.572356,0.00016695,2]
[396594882,1765065056501,-240.572356,0.00016695,2]
[396594883,1765065056511,-240.572356,0.00016695,2]
[396594884,1765065056520,-151.0,0.00016695,2]
[396594885,1765065056529,-156.956192,0.00016695,2]
[396594886,1765065056539,-151.0,0.00016695,2]
[396594887,1765065056548,-151.0,0.00016695,2]
[396594888,1765065056558,-151.0,0.00016695,2]
[396594889,1765065056567,-151.0,0.00016695,2]
[396594890,1765065056576,-151.0,0.00016695,2]
[396594891,1765065056585,-163.554883,0.00016695,2]
[396594892,1765065056594,-151.0,0.00016695,2]
[396594893,1765065056603,-151.0,0.00016695,2]
[396594894,1765065056613,-151.0,0.00016695,2]
[396594895,1765065056688,-153.420936,0.00016695,2]
[396594896,1765065056706,-151.0,0.00016695,2]
[396594897,1765065056717,-151.0,0.00016695,2]
[396594898,1765065056728,-151.0,0.00016695,2]
[396594899,1765065056738,-493.591863,0.00016695,2]
[396594900,1765065056747,-493.591863,0.00016695,2]
[396594901,1765065056756,-151.0,0.00016695,2]
[396594902,1765065056765,-493.591863,0.00016695,2]
[396594903,1765065056774,-493.591863,0.00016695,2]
[396594904,1765065056785,-428.899887,0.00016695,2]
[396594905,1765065056795,-428.899887,0.00016695,2]
[396594906,1765065056804,-151.0,0.00016695,2]
[396594907,1765065056815,-428.899887,0.00016695,2]
[396594908,1765065056824,-428.899887,0.00016695,2]
[396594909,1765065056833,-393.80133,0.00016695,2]
[396594910,1765065056842,-393.80133,0.00016695,2]
[396594911,1765065056852,-393.80133,0.00016695,2]
[396594912,1765065056861,-151.0,0.00016695,2]
[396594913,1765065056870,-393.80133,0.00016695,2]
[396594914,1765065056879,-151.0,0.00016695,2]
[396594915,1765065056889,-151.0,0.00016695,2]
[396594916,1765065056898,-170.961963,0.00016695,2]
[396594917,1765065056908,-151.0,0.00016695,2]
[396594918,1765065056917,-151.0,0.00016695,2]
[396594919,1765065056927,-151.0,0.00016695,2]
[396594920,1765065056938,-151.0,0.00016695,2]
[396594921,1765065056949,-151.0,0.00016695,2]
[396594922,1765065056958,-151.0,0.00016695,2]
[396594923,1765065056967,-151.0,0.00016695,2]
[396594924,1765065056976,-151.0,0.00016695,2]
[396594925,1765065056985,-151.0,0.00016695,2]
[396594926,1765065056994,-151.0,0.00016695,2]
[396594927,1765065057003,-151.0,0.00016695,2]
[396594928,1765065057012,-241.979441,0.00016695,2]
[396594929,1765065057022,-241.979441,0.00016695,2]
[396594930,1765065057031,-151.0,0.00016695,2]
[396594931,1765065057040,-241.979441,0.00016695,2]
[396594932,1765065057050,-241.979441,0.00016695,2]
[396594933,1765065057060,-151.0,0.00016695,2]
[396594934,1765065057070,-151.0,0.00016695,2]
[396594935,1765065057080,-151.0,0.00016695,2]
[396594936,1765065057091,-151.0,0.00016695,2]
[396594937,1765065057102,-151.0,0.00016695,2]
[396594938,1765065057112,-846.737984,0.00016695,2]
[396594939,1765065057122,-846.737984,0.00016695,2]
[396594940,1765065057139,-846.737984,0.00016695,2]
[396594941,1765065057150,-151.0,0.00016695,2]
[396594942,1765065057160,-846.737984,0.00016695,2]
[396594943,1765065057169,-151.0,0.00016695,2]
[396594944,1765065057178,-309.813134,0.00016695,2]
[396594945,1765065057187,-309.813134,0.00016695,2]
[396594946,1765065057196,-151.0,0.00016695,2]
[396594947,1765065057206,-309.813134,0.00016695,2]
[396594948,1765065057216,-309.813134,0.00016695,2]
[396594949,1765065057226,-151.0,0.00016695,2]
[396594950,1765065057238,-154.925311,0.00016695,2]
[396594951,1765065057249,-151.0,0.00016695,2]
[396594952,1765065057259,-151.0,0.00016695,2]
[396594953,1765065057271,-151.0,0.00016695,2]
[396594954,1765065057280,-151.0,0.00016695,2]
[396594955,1765065057290,-1000.0,0.000167,2]
[396594956,1765065057301,-235.0,0.00016707,2]
[396594957,1765065057310,-624.02,0.00016711,2]
[396594958,1765065057320,-624.02,0.00016711,2]
[396594959,1765065057331,-150.0,0.00016712,2]
[396594960,1765065057340,-500.0,0.00016712,2]
[396594961,1765065057350,-500.0,0.00016712,2]
[396594962,1765065057359,-500.0,0.00016712,2]
[396594963,1765065057368,-500.0,0.00016712,2]
[396594964,1765065057378,-500.0,0.00016712,2]
[396594965,1765065057388,-500.0,0.00016712,2]
[396594966,1765065057397,-500.0,0.00016712,2]
[396594967,1765065057406,-1861.69,0.00016712,2]
[396594968,1765065057417,-500.0,0.00016712,2]
[396594969,1765065057427,-500.0,0.00016712,2]
[396594970,1765065057436,-500.0,0.00016712,2]
[396594971,1765065057445,-500.0,0.00016712,2]
[396594972,1765065057455,-500.0,0.00016712,2]
[396594973,1765065057464,-500.0,0.00016712,2]
[396594974,1765065057473,-500.0,0.00016712,2]
[396594975,1765065057484,-500.0,0.00016712,2]
[396594976,1765065057493,-2057.97,0.00016712,2]
[396594977,1765065057502,-500.0,0.00016712,2]
[396594978,1765065057512,-500.0,0.00016712,2]
[396594979,1765065057521,-227.69913585,0.00016712,2]
[396594980,1765065057530,-500.0,0.00016712,2]
[396594981,1765065057539,-595.82523484,0.00016712,2]
[396594982,1765065057548,-2161.94,0.00016712,2]
[396594983,1765065057557,-500.0,0.00016712,2]
[396594984,1765065057567,-500.0,0.00016712,2]
[396594985,1765065057576,-2039.18,0.00016712,2]
[396594986,1765065057585,-500.0,0.00016712,2]
[396594987,1765065057594,-151.0,0.00016712,2]
[396594988,1765065057604,-500.0,0.00016712,2]
[396594989,1765065057613,-153.797533,0.00016712,2]
[396594990,1765065057622,-500.0,0.00016712,2]
[396594991,1765065057631,-500.0,0.00016712,2]
[396594992,1765065057640,-500.0,0.00016712,2]
[396594993,1765065057650,-550.03,0.00016712,2]
[396594994,1765065057659,-500.0,0.00016712,2]
[396594995,1765065057671,-2162.27,0.00016712,2]
[396594996,1765065057680,-500.0,0.00016712,2]
[396594997,1765065057689,-1761.71,0.00016712,2]
[396594998,1765065057698,-500.0,0.00016712,2]
[396594999,1765065057707,-500.0,0.00016712,2]
[396595000,1765065057717,-500.0,0.00016712,2]
[396595001,1765065057726,-500.0,0.00016712,2]
[396595002,1765065057735,-500.0,0.00016712,2]
[396595003,1765065057745,-2125.61,0.00016712,2]
[396595004,1765065057755,-500.0,0.00016712,2]
[396595005,1765065057764,-500.0,0.00016712,2]
[396595006,1765065057773,-500.0,0.00016712,2]
[396595007,1765065057782,-500.0,0.00016712,2]
[396595008,1765065057791,-2416.18,0.00016712,2]
[396595009,1765065057801,-151.0,0.00016712,2]
[396595010,1765065057810,-500.0,0.00016712,2]
[396595011,1765065057820,-500.0,0.00016712,2]
[396595012,1765065057829,-500.0,0.00016712,2]
[396595013,1765065057839,-500.0,0.00016712,2]
[396595014,1765065057849,-500.0,0.00016712,2]
[396595015,1765065057859,-500.0,0.00016712,2]
[396595016,1765065057868,-2356.57,0.00016712,2]
[396595017,1765065057877,-500.0,0.00016712,2]
[396595018,1765065057890,-500.0,0.00016712,2]
[396595019,1765065057901,-500.0,0.00016712,2]
[396595020,1765065057914,-2016.55,0.00016712,2]
[396595021,1765065057924,-500.0,0.00016712,2]
[396595022,1765065057933,-500.0,0.00016712,2]
[396595023,1765065057942,-500.0,0.00016712,2]
[396595024,1765065057952,-500.0,0.00016712,2]
[396595025,1765065057961,-500.0,0.00016712,2]
[396595026,1765065057970,-500.0,0.00016712,2]
[396595027,1765065057979,-500.0,0.00016712,2]
[396595028,1765065057989,-500.0,0.00016712,2]
[396595029,1765065057998,-500.0,0.00016712,2]
[396595030,1765065058007,-500.0,0.00016712,2]
[396595031,1765065058016,-151.0,0.00016712,2]
[396595032,1765065058025,-151.0,0.00016712,2]
[396595033,1765065058035,-500.0,0.00016712,2]
[396595034,1765065058045,-500.0,0.00016712,2]
[396595035,1765065058055,-515.76,0.00016712,2]
[396595036,1765065058067,-500.0,0.00016712,2]
[396595037,1765065058077,-500.0,0.00016712,2]
[396595038,1765065058086,-500.0,0.00016712,2]
[396595039,1765065058096,-2310.29,0.00016712,2]
[396595040,1765065058106,-182.09554307,0.00016712,2]
[396595041,1765065058116,-500.0,0.00016712,2]
[396595042,1765065058126,-500.0,0.00016712,2]
[396595043,1765065058135,-500.0,0.00016712,2]
[396595044,1765065058144,-500.0,0.00016712,2]
[396595045,1765065058153,-151.0,0.00016712,2]
[396595046,1765065058162,-500.0,0.00016712,2]
[396595047,1765065058171,-500.0,0.00016712,2]
[396595048,1765065058180,-500.0,0.00016712,2]
[396595049,1765065058190,-151.0,0.00016712,2]
[396595050,1765065058199,-500.0,0.00016712,2]
[396595051,1765065058208,-500.0,0.00016712,2]
[396595052,1765065058220,-500.0,0.00016712,2]
[396595053,1765065058231,-299.50992717,0.00016712,2]
[396595054,1765065058242,-156.152713,0.00016712,2]
[396595055,1765065058251,-500.0,0.00016712,2]
[396595056,1765065058260,-269.805973,0.00016712,2]
[396595057,1765065058269,-500.0,0.00016712,2]
[396595058,1765065058278,-500.0,0.00016712,2]
[396595059,1765065058287,-500.0,0.00016712,2]
[396595060,1765065058297,-1700.08,0.00016712,2]
[396595061,1765065058306,-500.0,0.00016712,2]
[396595062,1765065058315,-500.0,0.00016712,2]
[396595063,1765065058324,-803.67,0.00016712,2]
[396595064,1765065058333,-500.0,0.00016712,2]
[396595065,1765065058342,-500.0,0.00016712,2]
[396595066,1765065058351,-500.0,0.00016712,2]
[396595067,1765065058360,-2249.5,0.00016712,2]
[396595068,1765065058369,-500.0,0.00016712,2]
[396595069,1765065058379,-500.0,0.00016712,2]
[396595070,1765065058388,-797.7,0.00016712,2]
[396595071,1765065058397,-500.0,0.00016712,2]
[396595072,1765065058408,-478.72421032,0.00016712,2]
[396595073,1765065058418,-500.0,0.00016712,2]
[396595074,1765065058428,-500.0,0.00016712,2]
[396595075,1765065058437,-557.33,0.00016712,2]
[396595076,1765065058446,-500.0,0.00016712,2]
[396595077,1765065058456,-500.0,0.00016712,2]
[396595078,1765065058465,-500.0,0.00016712,2]
[396595079,1765065058474,-500.0,0.00016712,2]
[396595080,1765065058484,-802.36,0.00016712,2]
[396595081,1765065058493,-1994.56,0.00016712,2]
[396595082,1765065058502,-500.0,0.00016712,2]
[396595083,1765065058511,-500.0,0.00016712,2]
[396595084,1765065058520,-500.0,0.00016712,2]
[396595085,1765065058530,-500.0,0.00016712,2]
[396595086,1765065058539,-500.0,0.00016712,2]
[396595087,1765065058548,-500.0,0.00016712,2]
[396595088,1765065058558,-500.0,0.00016712,2]
[396595089,1765065058568,-2336.73,0.00016712,2]
[396595090,1765065058577,-2191.97,0.00016712,2]
[396595091,1765065058587,-500.0,0.00016712,2]
[396595092,1765065058596,-151.0,0.00016712,2]
[396595093,1765065058605,-151.0,0.00016712,2]
[396595094,1765065058615,-500.0,0.00016712,2]
[396595095,1765065058624,-500.0,0.00016712,2]
[396595096,1765065058634,-151.0,0.00016712,2]
[396595097,1765065058643,-151.0,0.00016712,2]
[396595098,1765065058652,-244.835881,0.00016712,2]
[396595099,1765065058661,-500.0,0.00016712,2]
[396595100,1765065058672,-502.73114491,0.00016712,2]
[396595101,1765065058681,-500.0,0.00016712,2]
[396595102,1765065058691,-500.0,0.00016712,2]
[396595103,1765065058700,-500.0,0.00016712,2]
[396595104,1765065058709,-151.0,0.00016712,2]
[396595105,1765065058720,-500.0,0.00016712,2]
[396595106,1765065058729,-500.0,0.00016712,2]
[396595107,1765065058739,-500.0,0.00016712,2]
[396595108,1765065058750,-500.0,0.00016712,2]
[396595109,1765065058760,-1612.61,0.00016712,2]
[396595110,1765065058769,-500.0,0.00016712,2]
[396595111,1765065058781,-500.0,0.00016712,2]
[396595112,1765065058790,-500.0,0.00016712,2]
[396595113,1765065058801,-500.0,0.00016712,2]
[396595114,1765065058811,-500.0,0.00016712,2]
[396595115,1765065058822,-500.0,0.00016712,2]